fUSD/lending_fUSD_20260324
["ID","MTS","AMOUNT","RATE_DAILY","PERIOD"]
[408880975,1774383040641,-500.0,0.00014124,2]
[408880976,1774383040650,-500.0,0.00014124,2]
[408880977,1774383040659,-500.0,0.00014124,2]
[408880978,1774383040669,-408.43146087,0.00014124,2]
[408880979,1774383040678,-625.92,0.00014124,2]
[408880980,1774383040687,-625.92,0.00014124,2]
[408880981,1774383040697,-625.92,0.00014124,2]
[408880982,1774383040706,-625.92,0.00014124,2]
[408880983,1774383040715,-625.92,0.00014124,2]
[408880984,1774383040724,-625.92,0.00014124,2]
[408880985,1774383040732,-625.92,0.00014124,2]
[408880986,1774383040741,-625.92,0.00014124,2]
[408880987,1774383040751,-625.92,0.00014124,2]
[408880988,1774383040760,-625.92,0.00014124,2]
[408880989,1774383040770,-625.92,0.00014124,2]
[408880990,1774383040782,-625.92,0.00014124,2]
[408880991,1774383040791,-625.92,0.00014124,2]
[408880992,1774383040801,-625.92,0.00014124,2]
[408880993,1774383040810,-625.92,0.00014124,2]
[408880994,1774383040821,-625.92,0.00014124,2]
[408880995,1774383040830,-625.92,0.00014124,2]
[408880996,1774383040839,-500.0,0.00014124,2]
[408880997,1774383040849,-500.0,0.00014124,2]
[408880998,1774383040858,-500.0,0.00014124,2]
[408880999,1774383040867,-500.0,0.00014124,2]
[408881000,1774383040876,-500.0,0.00014124,2]
[408881001,1774383040886,-500.0,0.00014124,2]
[408881002,1774383040895,-500.0,0.00014124,2]
[408881003,1774383040904,-500.0,0.00014124,2]
[408881005,1774383040913,-500.0,0.00014124,2]
[408881007,1774383040922,-500.0,0.00014124,2]
[408881009,1774383040931,-459.82,0.00014148,2]
[408881010,1774383040940,-270.3424235,0.0001417,2]
[408881011,1774383040950,-222.14,0.00014186,2]
[408881012,1774383040958,-2000.0,0.00014202,2]
[408881013,1774383040968,-644.83652762,0.00014209,2]
[408881014,1774383040977,-500.0,0.00014221,2]
[408881015,1774383040986,-1000.62395653,0.00014221,2]
[408881016,1774383040996,-1000.0,0.00014221,2]
[408881017,1774383041005,-504.67871963,0.00014221,2]
[408881018,1774383041014,-501.30507593,0.00014221,2]
[408881019,1774383041024,-449.54382398,0.00014221,2]
[408881020,1774383041033,-1000.63263987,0.00014221,2]
[408881021,1774383041042,-1000.0,0.00014221,2]
[408881022,1774383041051,-1000.0,0.00014221,2]
[408881023,1774383041061,-1000.0,0.00014221,2]
[408881024,1774383041071,-1000.0,0.00014221,2]
[408881025,1774383041080,-504.00492722,0.00014221,2]
[408881026,1774383041089,-1000.0,0.00014221,2]
[408881027,1774383041100,-1000.0,0.00014221,2]
[408881028,1774383041110,-1000.0,0.00014221,2]
[408881029,1774383041119,-420.0,0.00014222,2]
[408881030,1774383041128,-150.0,0.00014259,2]
[408881031,1774383041137,-250.0,0.00014266,2]
[408881032,1774383041147,-788.01198663,0.00014266,2]
[408881033,1774383041156,-2222.8763441,0.00014276,2]
[408881034,1774383041166,-2679.32196654,0.00014276,2]
[408881035,1774383041175,-3162.80581936,0.00014276,2]
[408881036,1774383041184,-1046.8329771,0.00014276,2]
[408881037,1774383041193,-500.0,0.00014321,2]
[408881038,1774383041203,-1332.86279244,0.00014322,2]
[408881039,1774383041211,-27938.15892031,0.00014322,2]
[408881040,1774383041220,-420.79,0.0001436,2]
[408881041,1774383041230,-2804.0,0.000144,2]
[408881042,1774383041239,-226.77,0.00014435,2]
[408881043,1774383041249,-500.0,0.00014521,2]
[408881044,1774383041259,-644.83652762,0.00014547,2]
[408881045,1774383041268,-27938.15892031,0.00014585,2]
[408881046,1774383041278,-200.0,0.00014621,2]
[408881047,1774383041287,-625.92,0.00014649,2]
[408881048,1774383041296,-150.0,0.00014679,2]
[408881049,1774383041305,-1332.86279244,0.00014717,2]
[408881050,1774383041315,-1500.0,0.00014768,2]
[408881051,1774383041324,-929.84899427,0.00014768,2]
[408881052,1774383041333,-1403.17353576,0.00014768,2]
[408881053,1774383041343,-197.81018147,0.00014768,2]
[408881054,1774383041352,-1500.0,0.00014768,2]
[408881055,1774383041362,-1500.0,0.00014768,2]
[408881056,1774383041371,-1500.0,0.00014768,2]
[408881057,1774383041380,-1500.0,0.00014768,2]
[408881058,1774383041390,-420.0,0.00014821,2]
[408881059,1774383041399,-226.77,0.00014836,2]
[408881060,1774383041408,-27938.15892031,0.00014848,2]
[408881061,1774383041417,-1680.0,0.00014874,2]
[408881062,1774383041426,-644.83652762,0.00014886,2]
[408881063,1774383041435,-154.29462543,0.00014929,2]
[408881064,1774383041444,-459.82,0.00014934,2]
[408881065,1774383041453,-250.0,0.00014937,2]
[408881066,1774383041463,-300.0,0.00015,2]
[408881067,1774383041472,-500.0,0.00015,2]
[408881068,1774383041481,-197.171,0.00015,2]
[408881069,1774383041490,-349.369714,0.00015057,7]
[408881070,1774383041499,-186.482456,0.00015057,7]
[408881071,1774383041509,-303.87994,0.00015057,7]
[408881072,1774383041518,-346.589427,0.00015067,7]
[408881073,1774383041527,-150.0,0.00015098,2]
[408881074,1774383041536,-500.0,0.0001511,2]
[408881075,1774383041545,-500.0,0.0001511,2]
[408881076,1774383041554,-500.0,0.0001511,2]
[408881077,1774383041564,-175.406128,0.00015111,7]
[408881078,1774383041573,-1332.86279244,0.00015111,2]
[408881079,1774383041582,-27938.15892031,0.00015111,2]
[408881080,1774383041591,-190.283257,0.00015165,7]
[408881081,1774383041601,-200.0,0.00015169,2]
[408881082,1774383041611,-500.0,0.00015198,2]
[408881083,1774383041621,-500.0,0.00015198,2]
[408881084,1774383041630,-338.47316987,0.00015198,2]
[408881085,1774383041639,-500.0,0.00015198,2]
[408881086,1774383041649,-500.0,0.00015198,2]
[408881087,1774383041658,-500.0,0.00015198,2]
[408881088,1774383041668,-151.51747593,0.00015199,2]
[408881089,1774383041677,-500.0,0.00015199,2]
[408881090,1774383041686,-9552.16786547,0.00015199,2]
[408881091,1774383041695,-500.0,0.00015199,2]
[408881092,1774383041704,-695.39793187,0.00015199,2]
[408881093,1774383041714,-500.0,0.00015199,2]
[408881094,1774383041723,-500.0,0.00015199,2]
[408881095,1774383041732,-500.0,0.00015199,2]
[408881096,1774383041742,-151.0,0.00015199,2]
[408881097,1774383041752,-500.0,0.00015199,2]
[408881098,1774383041763,-500.0,0.00015199,2]
[408881099,1774383041773,-500.0,0.00015199,2]
[408881100,1774383041786,-500.0,0.00015199,2]
[408881101,1774383041795,-500.0,0.00015199,2]
[408881102,1774383041804,-500.0,0.00015199,2]
[408881103,1774383041813,-500.0,0.00015199,2]
[408881104,1774383041824,-500.0,0.00015199,2]
[408881105,1774383041835,-500.0,0.00015199,2]
[408881106,1774383041845,-500.0,0.00015199,2]
[408881107,1774383041855,-500.0,0.00015199,2]
[408881108,1774383041864,-500.0,0.00015199,2]
[408881109,1774383041873,-500.0,0.00015199,2]
[408881110,1774383041884,-500.0,0.00015199,2]
[408881111,1774383041893,-500.0,0.00015199,2]
[408881112,1774383041902,-500.0,0.00015199,2]
[408881113,1774383041912,-500.0,0.00015199,2]
[408881114,1774383041921,-500.0,0.00015199,2]
[408881115,1774383041931,-500.0,0.00015199,2]
[408881116,1774383041940,-500.0,0.00015199,2]
[408881117,1774383041950,-500.0,0.00015199,2]
[408881118,1774383041960,-500.0,0.00015199,2]
[408881119,1774383041970,-500.0,0.00015199,2]
[408881120,1774383041979,-500.0,0.00015199,2]
[408881121,1774383041989,-500.0,0.00015199,2]
[408881122,1774383041998,-200.0,0.00015199,2]
[408881123,1774383042008,-500.0,0.00015199,2]
[408881124,1774383042017,-174.61919141,0.00015199,2]
[408881125,1774383042027,-500.0,0.00015199,2]
[408881126,1774383042036,-500.0,0.00015199,2]
[408881127,1774383042045,-151.0,0.00015199,2]
[408881128,1774383042055,-500.0,0.00015199,2]
[408881129,1774383042064,-151.0,0.00015199,2]
[408881130,1774383042074,-156.587,0.00015199,2]
[408881131,1774383042083,-194.37971726,0.00015199,2]
[408881132,1774383042092,-693.3919763,0.00015199,2]
[408881133,1774383042101,-250.0,0.00015199,2]
[408881134,1774383042110,-250.0,0.00015199,2]
[408881135,1774383042119,-250.0,0.00015199,2]
[408881136,1774383042128,-250.0,0.00015199,2]
[408881137,1774383042138,-250.0,0.00015199,2]
[408881138,1774383042147,-209.40437684,0.00015199,2]
[408881139,1774383042157,-250.0,0.00015199,2]
[408881140,1774383042167,-250.0,0.00015199,2]
[408881141,1774383042176,-250.0,0.00015199,2]
[408881142,1774383042185,-250.0,0.00015199,2]
[408881143,1774383042194,-279.9045709,0.00015199,2]
[408881144,1774383042203,-250.0,0.00015199,2]
[408881145,1774383042213,-262.90206542,0.00015199,2]
[408881146,1774383042222,-250.0,0.00015199,2]
[408881147,1774383042232,-743.50770149,0.00015199,2]
[408881148,1774383042241,-500.0,0.00015199,2]
[408881149,1774383042251,-500.0,0.00015199,2]
[408881150,1774383042261,-500.0,0.00015199,2]
[408881151,1774383042270,-500.0,0.00015199,2]
[408881152,1774383042279,-500.0,0.00015199,2]
[408881153,1774383042289,-150.0,0.000152,2]
[408881154,1774383042298,-250.72299322,0.000152,2]
[408881155,1774383042307,-990.448404,0.000152,2]
[408881156,1774383042317,-500.0,0.000152,2]
[408881157,1774383042327,-644.83652762,0.00015224,2]
[408881158,1774383042337,-226.77,0.00015237,2]
[408881159,1774383042346,-500.0,0.00015254,2]
[408881160,1774383042355,-9905.5980765,0.00015254,2]
[408881161,1774383042364,-151.0,0.00015254,2]
[408881162,1774383042373,-272.62944185,0.00015254,2]
[408881163,1774383042383,-433.0,0.00015264,2]
[408881164,1774383042392,-150.0,0.00015286,2]
[408881165,1774383042402,-800.0,0.000153,5]
[408881166,1774383042412,-10272.10520533,0.00015309,2]
[408881167,1774383042421,-500.0,0.00015309,2]
[408881168,1774383042430,-151.0,0.00015309,2]
[408881169,1774383042439,-282.71673119,0.00015309,2]
[408881170,1774383042448,-1008.47953738,0.00015316,2]
[408881171,1774383042458,-2000.0,0.00015316,2]
[408881172,1774383042467,-2000.0,0.00015316,2]
[408881173,1774383042476,-2000.0,0.00015316,2]
[408881174,1774383042486,-10652.17309792,0.00015364,2]
[408881175,1774383042496,-500.0,0.00015364,2]
[408881176,1774383042506,-151.0,0.00015364,2]
[408881177,1774383042515,-500.0,0.00015373,2]
[408881178,1774383042525,-27938.15892031,0.00015374,2]
[408881179,1774383042534,-1100.0,0.000154,5]
[408881180,1774383042544,-500.0,0.000154,2]
[408881181,1774383042553,-395.89,0.00015403,2]
[408881182,1774383042563,-11046.30350255,0.00015419,2]
[408881183,1774383042572,-500.0,0.00015419,2]
[408881184,1774383042582,-151.0,0.00015419,2]
[408881185,1774383042591,-2313.0,0.00015439,2]
[408881186,1774383042600,-11455.01673214,0.00015474,2]
[408881187,1774383042609,-500.0,0.00015474,2]
[408881188,1774383042619,-151.0,0.00015474,2]
[408881189,1774383042628,-168.0,0.00015497,2]
[408881190,1774383042638,-4927.71,0.000155,2]
[408881191,1774383042647,-4130.91,0.000155,2]
[408881192,1774383042657,-200.0,0.000155,5]
[408881193,1774383042666,-1332.86279244,0.00015506,2]
[408881194,1774383042676,-350.0,0.00015506,3]
[408881195,1774383042685,-2357.42141256,0.00015529,2]
[408881196,1774383042695,-160.0,0.00015536,2]
[408881197,1774383042704,-979.16666667,0.00015536,2]
[408881198,1774383042714,-160.0,0.00015536,2]
[408881199,1774383042723,-625.92,0.00015563,2]
[408881200,1774383042733,-587.0,0.00015598,2]
[408881201,1774383042742,-200.0,0.000156,5]
[408881202,1774383042751,-27938.15892031,0.00015637,2]
[408881203,1774383042761,-150.0,0.00015657,2]
[408881204,1774383042772,-350.0,0.00015666,3]
[408881205,1774383042785,-1492.76679653,0.0001568,2]
[408881206,1774383042795,-150.0,0.00015695,2]
[408881207,1774383042804,-6009.0,0.00015697,2]
[408881208,1774383042813,-2467.0,0.00015697,2]
[408881209,1774383042824,-200.0,0.000157,5]
[408881210,1774383042834,-459.82,0.0001572,2]
[408881211,1774383042844,-151.0,0.00015747,2]
[408881212,1774383042853,-200.0,0.00015747,2]
[408881213,1774383042862,-181.08010149,0.00015747,2]
[408881214,1774383042871,-668.65185757,0.00015747,2]
[408881215,1774383042881,-201.932861,0.00015747,2]
[408881216,1774383042890,-279.9045709,0.00015747,2]
[408881217,1774383042900,-771.01748645,0.00015747,2]
[408881218,1774383042909,-150.0,0.0001575,2]
[408881219,1774383042919,-282.71,0.00015753,2]
[408881220,1774383042928,-2000.0,0.0001578,2]
[408881221,1774383042937,-200.0,0.000158,5]
[408881222,1774383042946,-190.63003853,0.00015807,2]
[408881223,1774383042955,-150.0,0.00015809,2]
[408881224,1774383042965,-350.0,0.00015821,3]
[408881225,1774383042973,-350.0,0.00015826,4]
[408881226,1774383042982,-150.0,0.00015827,2]
[408881227,1774383042991,-150.0,0.00015835,2]
[408881228,1774383043000,-350.0,0.00015839,2]
[408881229,1774383043009,-150.0,0.00015853,2]
[408881230,1774383043018,-1402.04916666,0.00015859,2]
[408881231,1774383043027,-154.60882327,0.00015859,2]
[408881232,1774383043036,-314.16074238,0.00015859,2]
[408881233,1774383043045,-7262.42595383,0.00015859,2]
[408881234,1774383043054,-2313.0,0.00015859,2]
[408881235,1774383043063,-2500.0,0.00015864,2]
[408881236,1774383043073,-630.13314617,0.00015864,2]
[408881237,1774383043082,-2500.0,0.00015864,2]
[408881238,1774383043091,-1402.04916665,0.0001588,2]
[408881239,1774383043100,-154.60882326,0.0001588,2]
[408881240,1774383043110,-314.16074237,0.0001588,2]
[408881241,1774383043120,-151.0,0.00015897,2]
[408881242,1774383043130,-150.0,0.00015898,2]
[408881243,1774383043139,-500.0,0.00015899,2]
[408881244,1774383043148,-500.0,0.00015899,2]
[408881245,1774383043157,-500.0,0.00015899,2]
[408881247,1774383043167,-500.0,0.00015899,2]
[408881248,1774383043177,-500.0,0.00015899,2]
[408881249,1774383043186,-534.8771196,0.00015899,2]
[408881251,1774383043196,-500.0,0.00015899,2]
[408881252,1774383043205,-500.0,0.00015899,2]
[408881253,1774383043215,-9192.1786549,0.000159,3]
[408881254,1774383043225,-2854.82,0.000159,2]
[408881255,1774383043234,-10000.0,0.000159,2]
[408881256,1774383043393,-25000.0,0.000159,3]
[408881257,1774383043432,-1332.86279244,0.000159,2]
[408881258,1774383043442,-418.38763066,0.000159,2]
[408881259,1774383043451,-2040.0,0.000159,2]
[408881260,1774383043461,-150.0,0.000159,2]
[408881261,1774383043470,-501.0,0.000159,5]
[408881262,1774383043480,-172.24879032,0.000159,2]
[408881263,1774383043489,-150.0,0.000159,2]
[408881264,1774383043498,-1402.04916665,0.000159,2]
[408881265,1774383043507,-154.60882326,0.000159,2]
[408881266,1774383043516,-314.16074237,0.000159,2]
[408881267,1774383043525,-27938.15892031,0.000159,2]
[408881268,1774383043535,-1761.0,0.000159,5]
[408881269,1774383043544,-2391.0,0.000159,5]
[408881270,1774383043554,-1342.18,0.00015913,2]
[408881271,1774383043563,-531.3420411,0.00015944,2]
[408881272,1774383043573,-150.0,0.00015945,2]
[408881273,1774383043582,-2313.0,0.00015945,2]
[408881274,1774383043591,-656.18,0.00015948,2]
[408881276,1774383043601,-1000.0,0.0001595,2]
[408881277,1774383043610,-154.80716128,0.00015956,2]
[408881278,1774383043619,-500.0,0.00015958,2]
[408881279,1774383043628,-500.0,0.00015958,2]
[408881280,1774383043637,-500.0,0.00015958,2]
[408881281,1774383043646,-500.0,0.00015958,2]
[408881282,1774383043656,-500.0,0.00015958,2]
[408881283,1774383043666,-500.0,0.00015958,2]
[408881284,1774383043677,-500.0,0.00015958,2]
[408881285,1774383043686,-616.72336867,0.00015958,2]
[408881286,1774383043695,-500.0,0.00015958,2]
[408881287,1774383043705,-631.81161049,0.00015958,2]
[408881288,1774383043714,-500.0,0.00015958,2]
[408881289,1774383043723,-500.0,0.00015958,2]
[408881290,1774383043733,-500.0,0.00015958,2]
[408881291,1774383043743,-500.0,0.00015958,2]
[408881293,1774383043752,-500.0,0.00015958,2]
[408881294,1774383043763,-500.0,0.00015958,2]
[408881296,1774383043773,-411.74553912,0.00015958,2]
[408881298,1774383043786,-16456.6938223,0.00015959,2]
[408881299,1774383043795,-9212.1714139,0.00015959,2]
[408881300,1774383043804,-5403.4314258,0.00015959,2]
[408881301,1774383043814,-475676.6744775,0.00015959,2]
[408881302,1774383043826,-237503.1027945,0.00015959,2]
[408881303,1774383043835,-160873.5946789,0.00015959,2]
[408881304,1774383043845,-1530.4162002,0.00015959,2]
[408881305,1774383043855,-3625.57747866,0.0001596,2]
[408881306,1774383043864,-150.0,0.00015963,2]
[408881307,1774383043873,-400.0,0.0001597,2]
[408881309,1774383043883,-400.0,0.0001597,2]
[408881311,1774383043892,-400.0,0.0001597,2]
[408881313,1774383043902,-400.0,0.0001597,2]
[408881315,1774383043911,-2313.0,0.00015972,2]
[408881317,1774383043921,-500.0,0.00015973,2]
[408881319,1774383043930,-500.0,0.00015973,2]
[408881321,1774383043939,-500.0,0.00015973,2]
[408881323,1774383043948,-500.43058459,0.00015973,2]
[408881325,1774383043957,-500.65903266,0.00015973,2]
[408881327,1774383043966,-500.7456305,0.00015973,2]
[408881329,1774383043976,-500.80504455,0.00015973,2]
[408881331,1774383043985,-500.0,0.00015973,2]
[408881332,1774383043997,-500.0,0.00015973,2]
[408881333,1774383044008,-500.0,0.00015973,2]
[408881334,1774383044018,-500.70382414,0.00015973,2]
[408881335,1774383044026,-500.0,0.00015973,2]
[408881336,1774383044036,-500.0,0.00015973,2]
[408881337,1774383044046,-500.0,0.00015973,2]
[408881338,1774383044055,-500.0,0.00015973,2]
[408881339,1774383044065,-500.0,0.00015973,2]
[408881340,1774383044075,-500.58525136,0.00015973,2]
[408881341,1774383044084,-347.94216551,0.00015973,2]
[408881342,1774383044093,-500.0,0.00015973,2]
[408881343,1774383044103,-500.83207171,0.00015973,2]
[408881344,1774383044111,-366.41832896,0.00015973,2]
[408881345,1774383044120,-351.2418106,0.00015973,2]
[408881346,1774383044130,-500.0,0.00015973,2]
[408881347,1774383044140,-500.0,0.00015973,2]
[408881348,1774383044150,-500.0,0.00015973,2]
[408881349,1774383044159,-500.0,0.00015973,2]
[408881350,1774383044169,-500.0,0.00015973,2]
[408881351,1774383044179,-500.0,0.00015973,2]
[408881352,1774383044188,-500.0,0.00015973,2]
[408881353,1774383044197,-500.0,0.00015973,2]
[408881354,1774383044206,-500.0,0.00015973,2]
[408881355,1774383044217,-500.37949431,0.00015973,2]
[408881356,1774383044228,-500.0,0.00015973,2]
[408881357,1774383044239,-500.0,0.00015973,2]
[408881358,1774383044249,-500.0,0.00015973,2]
[408881359,1774383044259,-500.0,0.00015973,2]
[408881360,1774383044269,-500.0,0.00015973,2]
[408881361,1774383044280,-500.0,0.00015973,2]
[408881362,1774383044290,-353.52089299,0.0001599,2]
[408881363,1774383044300,-353.52089299,0.0001599,2]
[408881364,1774383044310,-222.14,0.00015992,2]
[408881365,1774383044319,-625.92,0.00015995,2]
[408881366,1774383044329,-625.92,0.00015995,2]
[408881367,1774383044338,-625.92,0.00015995,2]
[408881368,1774383044348,-625.92,0.00015995,2]
[408881369,1774383044356,-626.0572541,0.00015995,2]
[408881370,1774383044366,-178.74260496,0.00015997,2]
[408881371,1774383044376,-151.0,0.00015997,2]
[408881372,1774383044387,-666.0,0.00015999,2]
[408881373,1774383044397,-666.0,0.00015999,2]
[408881374,1774383044407,-345.51214168,0.00015999,2]
[408881375,1774383044416,-164.10793081,0.00015999,2]
[408881376,1774383044425,-500.0,0.00015999,2]
[408881377,1774383044435,-435.56481257,0.00015999,2]
[408881378,1774383044444,-500.0,0.00015999,2]
[408881379,1774383044455,-154.82251136,0.00015999,2]
[408881380,1774383044464,-351.77577192,0.00015999,2]
[408881381,1774383044474,-500.0,0.00015999,2]
[408881382,1774383044483,-500.0,0.00015999,2]
[408881383,1774383044492,-500.0,0.00015999,2]
[408881384,1774383044502,-500.0,0.00015999,2]
[408881385,1774383044511,-500.0,0.00015999,2]
[408881386,1774383044520,-500.0,0.00015999,2]
[408881387,1774383044530,-500.0,0.00015999,2]
[408881388,1774383044539,-161.59374025,0.00015999,2]
[408881389,1774383044548,-500.0,0.00015999,2]
[408881390,1774383044558,-500.0,0.00015999,2]
[408881391,1774383044567,-500.0,0.00015999,2]
[408881392,1774383044576,-623.11598405,0.00015999,2]
[408881393,1774383044585,-722516.10119167,0.00016,2]
[408881394,1774383045401,-415.0,0.00015697,2]
[408881395,1774383045411,-2521437.83879252,0.00016,2]
[408881396,1774383045421,-2842445.2040622,0.00016,2]
[408881397,1774383045432,-513.28348177,0.00016,2]
[408881398,1774383045451,-569.0,0.00016,2]
[408881399,1774383045528,-2522.48116495,0.00016,2]
[408881400,1774383045634,-16339.72992309,0.00016,2]
[408881401,1774383045950,-644.83652762,0.00015562,2]
[408881402,1774383045961,-45.33433363,0.0001588,2]
[408881403,1774383045974,-329.945,0.0001588,2]
[408881404,1774383046103,-1522.4522447,0.0001588,2]
[408881405,1774383046129,-5364.6943755,0.0001588,2]
[408881406,1774383046138,-6849.44492703,0.00016,2]
[408881407,1774383046261,-109.57548,0.00016,2]
[408881413,1774383046945,-1886.28776958,0.000156,2]
[408881414,1774383046964,-113.71223042,0.000156,2]
[408881415,1774383046974,-2000.0,0.000157,2]
[408881416,1774383046983,-2000.0,0.000158,2]
[408881417,1774383046993,-38220.83179112,0.0001588,2]
[408881418,1774383047010,-1628.36284956,0.0001588,2]
[408881419,1774383156049,1000.0,0.000112,5]
[408881426,1774383764685,-166.38,0.00011872,2]
[408881427,1774383764712,-250.0,0.00012404,2]
[408881428,1774383764739,-250.0,0.00012915,2]
[408881429,1774383764765,-193.0,0.00013059,2]
[408881430,1774383764792,-250.0,0.00013059,2]
[408881431,1774383764818,-300.0,0.00013354,2]
[408881432,1774383764846,-300.0,0.00013354,2]
[408881433,1774383764869,-166.38,0.00013355,2]
[408881434,1774383764880,-250.0,0.00013355,2]
[408881435,1774383764890,-250.0,0.00013355,2]
[408881436,1774383764908,-193.0,0.00013355,2]
[408881437,1774383764930,-250.0,0.00013355,2]
[408881438,1774383764948,-300.0,0.00013355,2]
[408881439,1774383764964,-190.62,0.00013355,2]
[408881440,1774383764975,-109.38,0.00013355,2]
[408881441,1774383764997,-1581.25,0.00013355,2]
[408881442,1774383765027,-5000.01,0.00013355,2]
[408881443,1774383767559,-5000.01,0.00013355,2]
[408881444,1774383767660,-5000.01,0.00013355,2]
[408881445,1774383815872,-6.38,0.00013355,2]
[408881446,1774383815900,-250.0,0.00013466,2]
[408881447,1774383815927,-200.72651587,0.00013578,2]
[408881448,1774383815954,-250.0,0.00013642,2]
[408881449,1774383815980,-150.0,0.00013678,2]
[408881450,1774383816010,-200.0,0.00013699,2]
[408881451,1774383816037,-150.0,0.000139,2]
[408881452,1774383816065,-234.94,0.00013941,2]
[408881453,1774383816095,-989.3655,0.00014,2]
[408881454,1774383816114,-6.38,0.00014066,2]
[408881455,1774383816126,-216.49,0.00014066,2]
[408881456,1774383816137,-33.51,0.00014066,2]
[408881457,1774383816152,-200.72651587,0.00014066,2]
[408881458,1774383816167,-250.0,0.00014066,2]
[408881459,1774383816182,-150.0,0.00014066,2]
[408881460,1774383816194,-200.0,0.00014066,2]
[408881461,1774383816209,-150.0,0.00014066,2]
[408881462,1774383816225,-234.94,0.00014066,2]
[408881463,1774383816240,-989.3655,0.00014066,2]
[408881464,1774383816258,-137.18596826,0.00014066,2]
[408881465,1774383818780,-286.52798413,0.00014066,2]
[408881466,1774383818796,-4426.95403174,0.00014066,2]
[408881472,1774384030124,-150.0,0.00014436,2]
[408881473,1774384030145,-69.22067148,0.00014455,2]
[408881474,1774384035348,-1430.77932852,0.00014455,2]
[408881475,1774384035369,-250.0,0.00014459,2]
[408881476,1774384035388,-150.0,0.00014483,2]
[408881477,1774384035410,-1107.77,0.00014521,2]
[408881478,1774384035432,-250.0,0.0001469,2]
[408881479,1774384035453,-150.0,0.00014725,2]
[408881480,1774384035473,-515.36873304,0.00014862,2]
[408881481,1774384035495,-1200.0,0.0001489,2]
[408881482,1774384035515,-300.0,0.0001489,2]
[408881483,1774384035535,-300.0,0.0001489,2]
[408881484,1774384035555,-4346.08193844,0.00014891,2]
[408881485,1774384036686,-6011.86806156,0.00014891,2]
[408881486,1774384036706,-154.29462543,0.00014931,2]
[408881487,1774384036727,-150.0,0.00015,2]
[408881488,1774384036748,-1600.0,0.00015024,2]
[408881489,1774384036770,-501.0,0.00015041,2]
[408881490,1774384036790,-416.73,0.00015104,2]
[408881491,1774384036811,-415.69135969,0.00015104,2]
[408881492,1774384036833,-150.0,0.00015158,2]
[408881493,1774384036853,-300.0,0.0001516,2]
[408881494,1774384036873,-300.41595332,0.00015161,2]
[408881495,1774384037322,-10000.0,0.00015161,2]
[408881496,1774384037735,-10000.0,0.00015161,2]
[408881497,1774384038268,-10000.0,0.00015161,2]
[408881498,1774384038587,-10000.0,0.00015161,2]
[408881499,1774384038945,-10000.0,0.00015161,2]
[408881500,1774384039347,-10000.0,0.00015161,2]
[408881501,1774384039781,-10000.0,0.00015161,2]
[408881502,1774384040109,-10000.0,0.00015161,2]
[408881503,1774384040450,-10000.0,0.00015161,2]
[408881504,1774384041357,-10000.0,0.00015161,2]
[408881505,1774384045232,-3661.19050048,0.00015161,2]
[408881506,1774384045252,-743.50770149,0.00015199,2]
[408881507,1774384045272,-388.37658607,0.00015199,2]
[408881508,1774384045292,-578.20924308,0.00015199,2]
[408881509,1774384045313,-151.0,0.00015199,2]
[408881510,1774384045335,-4477.71596888,0.00015199,2]
[408881511,1774384045936,-1065.90061879,0.00015199,2]